bitfinex/quotes_BTCUSD_20241025
["timestamp","ask_amount","ask_price","bid_price","bid_amount"]
[1729825892370,0.17063086,68111.0,68110.0,0.00165]
[1729825895408,0.17063086,68111.0,68110.0,0.08335]
[1729825897281,0.17063086,68111.0,68110.0,0.17385]
[1729825897454,0.17063086,68111.0,68110.0,0.27648215]
[1729825897674,0.147644,68111.0,68110.0,0.17385]
[1729825910855,0.147644,68111.0,68110.0,0.27648215]
[1729825911073,0.000825,68111.0,68110.0,0.27648215]
[1729825911702,0.000825,68111.0,68110.0,0.42330315]
[1729825912156,0.000825,68111.0,68110.0,0.5259353]
[1729825913204,0.000825,68111.0,68110.0,0.67643911]
[1729825913439,0.000825,68111.0,68110.0,0.68492499]
[1729825915136,0.000825,68111.0,68110.0,0.58229284]
[1729825915339,0.000825,68111.0,68110.0,0.68492499]
[1729825928582,0.000825,68111.0,68110.0,0.58229284]
[1729825930024,0.000825,68111.0,68110.0,0.28496803]
[1729825930664,0.000825,68111.0,68110.0,0.43178903]
[1729825931695,0.000825,68111.0,68110.0,0.28496803]
[1729825931904,0.000825,68111.0,68110.0,0.43178903]
[1729825932108,0.000825,68111.0,68110.0,0.35008903]
[1729825932324,0.000825,68111.0,68110.0,0.20326803]
[1729825932543,0.000825,68111.0,68110.0,0.35008903]
[1729825932761,0.000825,68111.0,68110.0,0.20326803]
[1729825932972,0.000825,68111.0,68110.0,0.35008903]
[1729825935056,0.000825,68111.0,68110.0,0.20326803]
[1729825935329,0.000825,68111.0,68110.0,0.19478215]
[1729825935523,0.000825,68111.0,68110.0,0.00165]
[1729825936167,0.147644,68111.0,68110.0,0.00165]
[1729825936371,0.000825,68111.0,68110.0,0.00165]
[1729825937827,0.000825,68111.0,68110.0,0.148471]
[1729825938037,0.000825,68111.0,68110.0,0.00165]
[1729825940034,0.000825,68111.0,68110.0,0.148471]
[1729825940232,0.000825,68111.0,68110.0,0.00165]
[1729825940387,0.000825,68111.0,68110.0,0.148471]
[1729825940566,0.000825,68111.0,68110.0,0.00165]
[1729825940773,0.000825,68111.0,68110.0,0.148471]
[1729825941742,0.000825,68111.0,68110.0,0.00165]
[1729825942038,0.000825,68111.0,68110.0,0.148471]
[1729825945544,0.000825,68111.0,68110.0,0.00165]
[1729825948321,0.147644,68111.0,68110.0,0.00165]
[1729825948523,0.000825,68111.0,68110.0,0.00165]
[1729825952564,0.147644,68111.0,68110.0,0.00165]
[1729825953008,0.000825,68111.0,68110.0,0.00165]
[1729825956108,0.147644,68111.0,68110.0,0.00165]
[1729825956316,0.000825,68111.0,68110.0,0.00165]
[1729825961403,0.147644,68111.0,68110.0,0.00165]
[1729825961620,0.000825,68111.0,68110.0,0.00165]
[1729825976753,0.000825,68111.0,68110.0,0.148471]
[1729825977253,0.000825,68111.0,68110.0,0.00165]
[1729825977675,0.000825,68111.0,68110.0,0.148471]
[1729825978013,0.000825,68111.0,68110.0,0.00165]
[1729825980767,0.000825,68111.0,68110.0,0.148471]
[1729825981189,0.000825,68111.0,68110.0,0.00165]
[1729825981422,0.000825,68111.0,68110.0,0.148471]
[1729825981803,0.000825,68111.0,68110.0,0.25110315]
[1729825982906,0.000825,68111.0,68110.0,0.10428215]
[1729825983324,0.000825,68111.0,68110.0,0.25110315]
[1729825983987,0.000825,68111.0,68110.0,0.10428215]
[1729825985397,0.147644,68111.0,68110.0,0.00165]
[1729825985773,0.31025942,68111.0,68110.0,0.00165]
[1729825985975,0.51286385,68111.0,68110.0,0.00165]
[1729825986244,0.51284887,68111.0,68110.0,0.00165]
[1729825986449,0.40275942,68111.0,68110.0,0.00165]
[1729825988210,0.51279353,68111.0,68110.0,0.00165]
[1729825989324,0.40275942,68111.0,68110.0,0.00165]
[1729825990857,0.40256684,68111.0,68110.0,0.00165]
[1729825991182,0.49055731,68111.0,68110.0,0.00165]
[1729825994265,0.48106684,68111.0,68110.0,0.00165]
[1729825994694,0.56905731,68111.0,68110.0,0.00165]
[1729825995164,0.48106684,68111.0,68110.0,0.00165]
[1729825997163,0.318644,68111.0,68110.0,0.00165]
[1729825997680,0.47614781,68111.0,68110.0,0.00165]
[1729825997916,0.63847672,68111.0,68110.0,0.00165]
[1729825999764,0.63647672,68111.0,68110.0,0.00165]
[1729826001401,0.74636595,68111.0,68110.0,0.00165]
[1729826001628,0.63147672,68111.0,68110.0,0.00165]
[1729826001875,0.39788004,68111.0,68110.0,0.00165]
[1729826002086,0.21357341,68111.0,68110.0,0.00165]
[1729826005355,0.147644,68111.0,68110.0,0.00165]
[1729826014948,0.2135721,68111.0,68110.0,0.00165]
[1729826019169,0.147644,68111.0,68110.0,0.00165]
[1729826020018,0.000825,68111.0,68110.0,0.17085]
[1729826020232,0.147644,68111.0,68110.0,0.17085]
[1729826021290,0.000825,68111.0,68110.0,0.17085]
[1729826021710,0.147644,68111.0,68110.0,0.17085]
[1729826021926,0.000825,68111.0,68110.0,0.27348215]
[1729826023003,0.000825,68111.0,68110.0,0.42030315]
[1729826023202,0.000825,68111.0,68110.0,0.27348215]
[1729826023833,0.000825,68111.0,68110.0,0.17085]
[1729826024038,0.000825,68111.0,68110.0,0.27348215]
[1729826027099,0.000825,68111.0,68110.0,0.42030315]
[1729826027328,0.000825,68111.0,68110.0,0.27348215]
[1729826028031,0.000825,68111.0,68110.0,0.42323934]
[1729826028261,0.000825,68111.0,68110.0,0.42030315]
[1729826028500,0.000825,68111.0,68110.0,0.79120883]
[1729826028735,0.000825,68111.0,68110.0,0.69643911]
[1729826028947,0.000825,68111.0,68110.0,0.80143911]
[1729826029394,0.000825,68111.0,68110.0,0.81143911]
[1729826034238,0.000825,68118.0,68110.0,0.81143911]
[1729826034239,0.000825,68118.0,68117.0,0.005]
[1729826034465,0.000825,68118.0,68117.0,0.70747411]
[1729826037964,0.000825,68118.0,68117.0,0.71600875]
[1729826040253,0.000825,68118.0,68117.0,0.82600875]
[1729826044171,0.000824,68131.0,68121.0,0.0995]
[1729826044389,0.22040187,68130.0,68129.0,0.32368]
[1729826044617,0.000824,68131.0,68130.0,0.146778]
[1729826045053,0.000824,68131.0,68130.0,0.14971323]
[1729826046962,0.000824,68131.0,68130.0,0.146778]
[1729826047838,0.000824,68131.0,68130.0,0.15500079]
[1729826053794,0.000824,68131.0,68130.0,0.26056817]
[1729826054011,0.000824,68131.0,68130.0,0.15793602]
[1729826059335,0.000824,68131.0,68130.0,0.15500079]
[1729826064346,0.000824,68131.0,68130.0,0.15793592]
[1729826065422,0.000824,68131.0,68130.0,0.26056807]
[1729826066048,0.000824,68131.0,68130.0,0.15793592]
[1729826067504,0.000824,68131.0,68130.0,0.52313675]
[1729826069279,0.000824,68131.0,68130.0,0.4205046]
[1729826071032,0.000824,68131.0,68130.0,0.52313675]
[1729826072023,0.000824,68131.0,68130.0,0.4205046]
[1729826072235,0.000824,68131.0,68130.0,0.52313675]
[1729826072834,0.000824,68131.0,68130.0,0.4205046]
[1729826075256,0.000824,68131.0,68130.0,0.52313675]
[1729826075598,0.000824,68131.0,68130.0,0.4205046]
[1729826080346,0.000824,68131.0,68130.0,0.3285046]
[1729826080948,0.000824,68131.0,68130.0,0.15500079]
[1729826081154,0.000824,68131.0,68130.0,0.11085494]
[1729826081408,0.000824,68131.0,68130.0,0.28365494]
[1729826081625,0.000824,68131.0,68130.0,0.25763294]
[1729826085229,0.000824,68131.0,68130.0,0.35523294]
[1729826088710,0.000824,68131.0,68130.0,0.43043294]
[1729826093433,0.000824,68131.0,68130.0,0.25763294]
[1729826115855,0.000824,68131.0,68130.0,0.36026509]
[1729826116037,0.000824,68131.0,68130.0,0.25763294]
[1729826116664,0.000824,68131.0,68130.0,0.36026509]
[1729826117957,0.320354,68141.0,68140.0,0.196704]
[1729826118187,0.1736,68141.0,68140.0,0.29933615]
[1729826118389,0.320354,68141.0,68140.0,0.29933615]
[1729826120178,0.321179,68141.0,68140.0,0.29933615]
[1729826120813,0.238279,68141.0,68140.0,0.29933615]
[1729826121016,0.147579,68141.0,68140.0,0.29933615]
[1729826121833,0.147579,68141.0,68140.0,0.196704]
[1729826136889,0.000825,68141.0,68140.0,0.196704]
[1729826137088,0.000825,68141.0,68140.0,0.43686]
[1729826142863,0.000825,68141.0,68140.0,0.51926]
[1729826144063,0.000825,68141.0,68140.0,0.66976381]
[1729826145098,0.000825,68141.0,68140.0,0.69276381]
[1729826153071,0.000825,68141.0,68140.0,0.34346]
[1729826153526,0.00727214,68141.0,68140.0,0.34346]
[1729826153752,0.000825,68141.0,68140.0,0.34346]
[1729826157760,0.00727214,68141.0,68140.0,0.34346]
[1729826157972,0.000825,68141.0,68140.0,0.34346]
[1729826158184,0.00727214,68141.0,68140.0,0.34346]
[1729826158408,0.000825,68141.0,68140.0,0.34346]
[1729826159278,0.000825,68141.0,68140.0,0.43686]
[1729826159496,0.000825,68141.0,68140.0,0.51926]
[1729826161577,0.000825,68141.0,68140.0,0.69276381]
[1729826161794,0.000825,68141.0,68140.0,0.91316568]
[1729826162010,0.000832,68151.0,68140.0,0.91316568]
[1729826162011,0.000832,68151.0,68150.0,0.5277993]
[1729826162438,0.000832,68151.0,68150.0,0.67830311]
[1729826164942,0.000832,68151.0,68150.0,0.47303881]
[1729826165191,0.000832,68151.0,68150.0,0.67830311]
[1729826168773,0.000832,68151.0,68150.0,0.29723881]
[1729826169018,0.000832,68151.0,68150.0,0.1109359]
[1729826169232,0.000832,68151.0,68150.0,0.2576709]
[1729826169444,0.00729391,68151.0,68150.0,0.2576709]
[1729826169657,0.000832,68151.0,68150.0,0.2576709]
[1729826169875,0.000832,68151.0,68150.0,0.1109359]
[1729826170103,0.00729346,68151.0,68150.0,0.1109359]
[1729826170316,0.000832,68151.0,68150.0,0.2576709]
[1729826170525,0.00729312,68151.0,68150.0,0.2576709]
[1729826170775,0.000832,68151.0,68150.0,0.2576709]
[1729826170980,0.00729158,68151.0,68150.0,0.2576709]
[1729826171233,0.000832,68151.0,68150.0,0.2576709]
[1729826171456,0.00729158,68151.0,68150.0,0.2576709]
[1729826171719,0.000832,68151.0,68150.0,0.2576709]
[1729826171967,0.00729158,68151.0,68150.0,0.1109359]
[1729826172207,0.000832,68151.0,68141.0,0.293509]
[1729826172468,0.00729158,68151.0,68149.0,0.10263215]
[1729826172684,0.146735,68150.0,68149.0,0.10263215]
[1729826173096,0.14859912,68150.0,68149.0,0.10263215]
[1729826173568,0.00186412,68150.0,68149.0,0.10263215]
[1729826173778,0.14859912,68150.0,68149.0,0.10263215]
[1729826174236,0.00186412,68150.0,68149.0,0.10263215]
[1729826174855,0.14859912,68150.0,68149.0,0.10263215]
[1729826175594,0.00186412,68150.0,68149.0,0.10263215]
[1729826176135,0.14859912,68150.0,68149.0,0.10263215]
[1729826176573,0.14859912,68150.0,68146.0,0.00836037]
[1729826176574,0.146741,68147.0,68146.0,0.00836037]
[1729826177015,0.07875119,68147.0,68140.0,0.196704]
[1729826177168,0.293491,68145.0,68140.0,0.196704]
[1729826177347,0.146754,68141.0,68140.0,0.196704]
[1729826177759,0.14857932,68141.0,68140.0,0.196704]
[1729826177963,0.14857932,68141.0,68140.0,0.198354]
[1729826178157,0.00182532,68141.0,68140.0,0.198354]
[1729826178678,0.00182532,68141.0,68140.0,0.34511]
[1729826178895,0.146747,68145.0,68140.0,0.34511]
[1729826179097,0.146747,68145.0,68144.0,0.10263215]
[1729826179332,0.176132,68151.0,68144.0,0.10263215]
[1729826179525,0.440211,68149.0,68148.0,0.10263215]
[1729826180513,0.44207081,68149.0,68148.0,0.10263215]
[1729826181485,0.44665901,68149.0,68148.0,0.10263215]
[1729826182158,0.293478,68148.0,68145.0,0.10263215]
[1729826182410,0.146743,68146.0,68145.0,0.10263215]
[1729826182867,0.15134403,68146.0,68145.0,0.10263215]
[1729826184284,0.15319091,68146.0,68145.0,0.10263215]
[1729826188694,0.14675,68143.0,68142.0,0.10263215]
[1729826189138,0.14858394,68143.0,68142.0,0.10263215]
[1729826190315,0.146754,68141.0,68140.0,0.198354]
[1729826190861,0.14857932,68141.0,68140.0,0.198354]
[1729826191057,0.00182532,68141.0,68140.0,0.198354]
[1729826191265,0.14857932,68141.0,68140.0,0.198354]
[1729826191509,0.29809003,68146.0,68140.0,0.198354]
[1729826191702,0.00182532,68141.0,68140.0,0.198354]
[1729826191940,0.146754,68141.0,68140.0,0.198354]
[1729826192173,0.00182532,68141.0,68140.0,0.198354]
[1729826192827,0.14857932,68141.0,68140.0,0.198354]
[1729826193560,0.32867932,68141.0,68140.0,0.198354]
[1729826196486,0.33328107,68141.0,68140.0,0.198354]
[1729826199056,0.326854,68141.0,68140.0,0.198354]
[1729826199717,0.328854,68141.0,68140.0,0.198354]
[1729826199924,0.58698996,68141.0,68140.0,0.198354]
[1729826200122,0.48435781,68141.0,68140.0,0.198354]
[1729826200715,0.48235781,68141.0,68140.0,0.198354]
[1729826201686,0.59955611,68141.0,68140.0,0.198354]
[1729826201882,0.48235781,68141.0,68140.0,0.198354]
[1729826202115,0.48518281,68141.0,68140.0,0.198354]
[1729826202306,0.48318281,68141.0,68140.0,0.198354]
[1729826203983,0.48518281,68141.0,68140.0,0.198354]
[1729826205417,0.48318281,68141.0,68140.0,0.198354]
[1729826206305,0.50615852,68141.0,68140.0,0.198354]
[1729826206755,0.50815852,68141.0,68140.0,0.198354]
[1729826206952,0.50615852,68141.0,68140.0,0.198354]
[1729826207762,0.50815852,68141.0,68140.0,0.198354]
[1729826208502,0.50615852,68141.0,68140.0,0.198354]
[1729826209967,0.48318281,68141.0,68140.0,0.198354]
[1729826215391,0.58581496,68141.0,68140.0,0.198354]
[1729826218869,0.74793932,68141.0,68140.0,0.198354]
[1729826219505,0.65168146,68141.0,68140.0,0.198354]
[1729826219926,0.65368146,68141.0,68140.0,0.198354]
[1729826220395,0.65168146,68141.0,68140.0,0.198354]
[1729826222257,0.65368146,68141.0,68140.0,0.198354]
[1729826224334,0.58781496,68141.0,68140.0,0.198354]
[1729826225038,0.58581496,68141.0,68140.0,0.198354]
[1729826229603,0.50371496,68141.0,68140.0,0.198354]
[1729826230034,0.40571496,68141.0,68140.0,0.198354]
[1729826231546,0.44961455,68141.0,68140.0,0.198354]
[1729826232506,0.40571496,68141.0,68140.0,0.198354]
[1729826233539,0.4715611,68141.0,68140.0,0.198354]
[1729826235379,0.56789817,68141.0,68140.0,0.198354]
[1729826236700,0.65569302,68141.0,68140.0,0.198354]
[1729826237481,0.67764173,68141.0,68140.0,0.198354]
[1729826238453,0.56789817,68141.0,68140.0,0.198354]
[1729826238796,0.57525388,68141.0,68140.0,0.198354]
[1729826239075,0.46526602,68141.0,68140.0,0.198354]
[1729826239291,0.55325201,68141.0,68140.0,0.198354]
[1729826239720,0.46526602,68141.0,68140.0,0.198354]
[1729826240642,0.57532628,68141.0,68140.0,0.198354]
[1729826241075,0.57565391,68141.0,68140.0,0.198354]
[1729826246186,0.46559366,68141.0,68140.0,0.198354]
[1729826247570,0.57565391,68141.0,68140.0,0.198354]
[1729826247957,0.46559366,68141.0,68140.0,0.198354]
[1729826249207,0.57561446,68141.0,68140.0,0.198354]
[1729826250263,0.46559366,68141.0,68140.0,0.198354]
[1729826252351,0.57561544,68141.0,68140.0,0.198354]
[1729826252577,0.42011163,68141.0,68140.0,0.198354]
[1729826252795,0.19858822,68141.0,68140.0,0.291954]
[1729826253207,0.17658413,68141.0,68140.0,0.291954]
[1729826255253,0.132579,68141.0,68140.0,0.291954]
[1729826258841,0.132579,68141.0,68140.0,0.371654]
[1729826269425,0.132579,68141.0,68140.0,0.291954]
[1729826270793,0.132579,68141.0,68140.0,0.198354]
[1729826275319,0.132579,68141.0,68140.0,0.376854]
[1729826276158,0.147579,68141.0,68140.0,0.376854]
[1729826277235,0.000825,68141.0,68140.0,0.376854]
[1729826277865,0.147579,68141.0,68140.0,0.376854]
[1729826278697,0.000825,68141.0,68140.0,0.376854]
[1729826279150,0.147579,68141.0,68140.0,0.376854]
[1729826279357,0.000825,68141.0,68140.0,0.376854]
[1729826279997,0.147579,68141.0,68140.0,0.376854]
[1729826280204,0.000825,68141.0,68140.0,0.376854]
[1729826280440,0.147579,68141.0,68140.0,0.376854]
[1729826280859,0.000825,68141.0,68140.0,0.376854]
[1729826281297,0.147579,68141.0,68140.0,0.376854]
[1729826282619,0.000825,68141.0,68140.0,0.376854]
[1729826283761,0.000825,68141.0,68140.0,0.52361]
[1729826283958,0.000825,68141.0,68140.0,0.376854]
[1729826287389,0.000825,68141.0,68140.0,0.52361]
[1729826288092,0.000825,68141.0,68140.0,0.67411381]
[1729826292795,0.000825,68141.0,68140.0,0.70211381]
[1729826293422,0.000825,68141.0,68140.0,0.71211381]
[1729826294470,0.00076996,68141.0,68140.0,0.71211381]
[1729826303144,0.00071492,68141.0,68140.0,0.71211381]
[1729826303805,0.00071492,68141.0,68140.0,0.71670085]
[1729826304483,0.00071492,68141.0,68140.0,0.71211381]
[1729826306628,0.00071492,68141.0,68140.0,0.71670083]
[1729826307671,0.00065988,68141.0,68140.0,0.71211381]
[1729826308716,0.00065988,68141.0,68140.0,0.81211381]
[1729826309129,0.00060484,68141.0,68140.0,0.81211381]
[1729826310009,0.0005498,68141.0,68140.0,0.81211381]
[1729826311046,0.00049476,68141.0,68140.0,0.81211381]
[1729826321631,0.00049476,68141.0,68140.0,0.85773974]
[1729826322300,0.00049476,68141.0,68140.0,0.80254596]
[1729826322528,0.00049476,68141.0,68140.0,0.84820159]
[1729826325904,0.00049476,68141.0,68140.0,0.92610159]
[1729826329229,0.00049476,68141.0,68140.0,0.82346944]
[1729826330311,0.00049476,68141.0,68140.0,0.87223247]
[1729826330520,0.00049476,68141.0,68140.0,0.89411399]
[1729826330715,0.00049476,68141.0,68140.0,0.89911399]
[1729826331747,0.00049476,68141.0,68140.0,0.83346944]
[1729826332773,0.00049476,68141.0,68140.0,0.9209955]
[1729826337205,0.00049476,68141.0,68140.0,0.83346944]
[1729826343807,0.00049476,68141.0,68140.0,1.03873374]
[1729826344970,0.00049476,68141.0,68140.0,1.06173374]
[1729826347844,0.00049476,68141.0,68140.0,0.85646944]
[1729826348050,0.00049476,68141.0,68140.0,0.95910159]
[1729826349904,0.00049476,68141.0,68140.0,0.85646944]
[1729826358381,0.20825299,68156.0,68145.0,0.005]
[1729826358598,0.20825299,68156.0,68155.0,0.24935615]
[1729826358812,0.000831,68159.0,68155.0,0.24935615]
[1729826359024,0.000831,68159.0,68158.0,0.10263215]
[1729826361339,0.00537798,68159.0,68158.0,0.10263215]
[1729826365691,0.00537798,68159.0,68158.0,0.24934915]
[1729826365901,0.00537798,68159.0,68158.0,0.10263215]
[1729826368473,0.15209298,68159.0,68158.0,0.10263215]
[1729826369650,0.15179298,68159.0,68158.0,0.10263215]
[1729826369853,0.15179298,68159.0,68155.0,0.24935515]
[1729826371737,0.15179298,68159.0,68156.0,0.146721]
[1729826374137,0.00507798,68159.0,68156.0,0.146721]
[1729826374331,0.00507798,68159.0,68158.0,0.24934915]
[1729826374707,0.00507798,68159.0,68158.0,0.10263215]
[1729826375245,0.00507798,68159.0,68158.0,0.24934915]
[1729826375674,0.00507798,68159.0,68158.0,0.10263215]
[1729826378589,0.000531,68159.0,68158.0,0.10263215]
[1729826380393,0.098662,68160.0,68158.0,0.10263215]
[1729826382308,0.098662,68160.0,68159.0,0.146715]
[1729826382444,0.098662,68160.0,68158.0,0.10263215]
[1729826382647,0.000262,68160.0,68159.0,0.146715]
[1729826387236,0.000262,68160.0,68159.0,0.24934715]
[1729826394614,0.000262,68160.0,68159.0,0.25099715]
[1729826396342,0.000262,68160.0,68159.0,0.25558362]
[1729826402786,0.000262,68160.0,68159.0,0.26404093]
[1729826403031,0.000262,68160.0,68159.0,0.25945446]
[1729826426425,6.2e-05,68160.0,68159.0,0.25945446]
[1729826440662,6.2e-05,68160.0,68159.0,0.15682231]
[1729826440866,6.2e-05,68160.0,68159.0,0.25945446]
[1729826442913,6.2e-05,68160.0,68159.0,0.11273946]
[1729826443088,6.2e-05,68160.0,68159.0,0.25945446]
[1729826444405,6.2e-05,68160.0,68159.0,0.11273946]
[1729826448477,6.2e-05,68160.0,68159.0,0.25945446]
[1729826459734,6.2e-05,68160.0,68159.0,0.35165446]
[1729826460279,6.2e-05,68160.0,68159.0,0.42995446]
[1729826463612,6.2e-05,68160.0,68159.0,0.58045827]
[1729826470676,6.2e-05,68160.0,68159.0,0.68309042]
[1729826470983,0.000831,68162.0,68161.0,0.325111]
[1729826471105,0.000831,68162.0,68161.0,0.47561481]
[1729826471960,0.06601853,68172.0,68170.0,0.1734]
[1729826472160,0.06601853,68172.0,68171.0,0.146689]
[1729826472363,0.146669,68181.0,68170.0,0.32390381]
[1729826472577,0.439998,68182.0,68180.0,0.10263215]
[1729826472774,0.146668,68181.0,68180.0,0.10263215]
[1729826473354,0.293332,68182.0,68177.0,0.10263215]
[1729826473552,0.293332,68182.0,68177.0,0.24930815]
[1729826473900,0.146672,68179.0,68177.0,0.10263215]
[1729826474152,0.293328,68183.0,68177.0,0.10263215]
[1729826474362,0.146673,68179.0,68177.0,0.10263215]
[1729826474781,0.146671,68180.0,68177.0,0.10263215]
[1729826475455,0.146673,68179.0,68177.0,0.10263215]
[1729826475665,0.000825,68181.0,68177.0,0.10263215]
[1729826475878,0.146674,68178.0,68177.0,0.10263215]
[1729826476534,0.000825,68181.0,68177.0,0.10263215]
[1729826476771,0.000825,68181.0,68177.0,0.20093215]
[1729826476772,0.147494,68181.0,68177.0,0.20093215]
[1729826476964,0.147494,68181.0,68180.0,0.10263215]
[1729826479190,0.000825,68181.0,68180.0,0.10263215]
[1729826481218,0.146674,68178.0,68177.0,0.10263215]
[1729826481420,0.000825,68181.0,68177.0,0.10263215]
[1729826481660,0.146671,68180.0,68177.0,0.10263215]
[1729826482676,0.000825,68181.0,68177.0,0.24930815]
[1729826482852,0.146671,68180.0,68177.0,0.10263215]
[1729826484569,0.000825,68181.0,68177.0,0.10263215]
[1729826484791,0.146671,68180.0,68177.0,0.10263215]
[1729826485743,0.146672,68179.0,68177.0,0.10263215]
[1729826485981,0.000825,68181.0,68180.0,0.050032]
[1729826486757,0.146668,68181.0,68180.0,0.050032]
[1729826486961,0.146668,68181.0,68180.0,0.15266415]
[1729826491148,0.146668,68181.0,68180.0,0.050032]
[1729826496360,0.146668,68181.0,68180.0,0.15266415]
[1729826496777,0.146668,68181.0,68180.0,0.050032]
[1729826497848,0.146668,68181.0,68180.0,0.15266415]
[1729826498317,0.146668,68181.0,68180.0,0.050032]
[1729826499133,0.146668,68181.0,68180.0,0.051682]
[1729826503167,0.244168,68181.0,68180.0,0.051682]
[1729826504821,0.146668,68181.0,68180.0,0.051682]
[1729826512147,0.19062568,68181.0,68180.0,0.051682]
[1729826512349,0.19042568,68181.0,68180.0,0.051682]
[1729826514008,0.19043443,68181.0,68180.0,0.051682]
[1729826516266,0.21241765,68181.0,68180.0,0.051682]
[1729826518464,0.06594965,68181.0,68180.0,0.051682]
[1729826518666,0.04399482,68182.0,68180.0,0.051682]
[1729826519137,0.19066082,68182.0,68180.0,0.051682]
[1729826520581,0.146668,68181.0,68180.0,0.051682]
[1729826522436,0.04399334,68182.0,68180.0,0.051682]
[1729826523264,0.146668,68181.0,68180.0,0.051682]
[1729826529645,0.04481744,68183.0,68181.0,0.0923]
[1729826529857,0.000825,68183.0,68182.0,0.10263215]
[1729826530076,0.000825,68183.0,68181.0,0.1687]
[1729826530077,0.147489,68183.0,68181.0,0.1687]
[1729826530894,0.146666,68182.0,68181.0,0.1687]
[1729826531098,0.000825,68183.0,68181.0,0.1687]
[1729826531300,0.14749,68183.0,68181.0,0.1687]
[1729826532355,0.146666,68182.0,68181.0,0.1687]
[1729826533767,0.146668,68181.0,68180.0,0.051682]
[1729826537555,0.000825,68183.0,68180.0,0.051682]
[1729826537756,0.146666,68182.0,68180.0,0.051682]
[1729826538886,0.146668,68181.0,68180.0,0.051682]
[1729826539111,0.000825,68183.0,68180.0,0.051682]
[1729826539539,0.14749,68183.0,68180.0,0.051682]
[1729826539752,0.000825,68183.0,68180.0,0.15431415]
[1729826540204,0.000825,68183.0,68181.0,0.146668]
[1729826540631,0.000825,68183.0,68180.0,0.15431415]
[1729826540885,0.000825,68183.0,68182.0,0.238966]
[1729826541084,0.000825,68183.0,68182.0,0.315366]
[1729826542622,0.000825,68183.0,68182.0,0.46586981]
[1729826547784,0.000825,68183.0,68182.0,0.31920381]
[1729826547995,0.000825,68183.0,68182.0,0.56850196]
[1729826549444,0.00028336,68183.0,68182.0,0.56850196]
[1729826551847,0.00028336,68183.0,68182.0,0.46586981]
[1729826569496,0.00028336,68183.0,68182.0,0.46751981]
[1729826573576,0.11133616,68190.0,68188.0,0.19423215]
[1729826575356,0.293285,68193.0,68188.0,0.19423215]
[1729826575699,0.146648,68191.0,68188.0,0.19423215]
[1729826576228,0.146649,68190.0,68188.0,0.19423215]
[1729826578208,0.293285,68193.0,68188.0,0.19423215]
[1729826578624,0.146648,68191.0,68188.0,0.19423215]
[1729826579182,0.146648,68191.0,68188.0,0.20286016]
[1729826579651,0.293276,68195.0,68189.0,0.146649]
[1729826579878,0.293276,68195.0,68188.0,0.20286016]
[1729826579879,0.146648,68191.0,68188.0,0.20286016]
[1729826580327,0.146643,68193.0,68189.0,0.14665]
[1729826580545,0.293287,68193.0,68188.0,0.20286016]
[1729826580811,0.439931,68193.0,68188.0,0.34951116]
[1729826581023,0.146647,68191.0,68188.0,0.20286016]
[1729826581475,0.04394495,68195.0,68188.0,0.20286016]
[1729826581698,0.293289,68193.0,68188.0,0.20286016]
[1729826581916,0.146647,68191.0,68188.0,0.20286016]
[1729826583111,0.293289,68193.0,68188.0,0.20286016]
[1729826583112,0.439932,68193.0,68189.0,0.146651]
[1729826583345,0.439932,68193.0,68188.0,0.20286016]
[1729826583346,0.146647,68191.0,68188.0,0.20286016]
[1729826583953,0.04394495,68194.0,68189.0,0.146649]
[1729826584160,0.04394495,68194.0,68188.0,0.20286016]
[1729826584345,0.146647,68191.0,68188.0,0.20286016]
[1729826584546,0.293287,68193.0,68188.0,0.20286016]
[1729826584746,0.146647,68191.0,68188.0,0.34951116]
[1729826585201,0.439931,68193.0,68188.0,0.34951116]
[1729826585559,0.146648,68191.0,68188.0,0.20286016]
[1729826586627,0.439932,68193.0,68188.0,0.34951216]
[1729826586851,0.146647,68191.0,68188.0,0.34951216]
[1729826587262,0.146647,68191.0,68188.0,0.20286016]
[1729826589745,0.146647,68191.0,68188.0,0.34951316]
[1729826591536,0.043978,68194.0,68188.0,0.20286016]
[1729826591738,0.146646,68192.0,68188.0,0.34951216]
[1729826592991,0.043978,68194.0,68188.0,0.20286016]
[1729826593655,0.439935,68192.0,68188.0,0.0916]
[1729826593854,0.146647,68191.0,68188.0,0.0916]
[1729826594082,0.146645,68192.0,68188.0,0.0916]
[1729826594342,0.146645,68192.0,68187.0,0.00842928]
[1729826594511,0.146645,68192.0,68187.0,0.01007928]
[1729826594748,0.043978,68194.0,68187.0,0.00165]
[1729826594923,0.293285,68193.0,68187.0,0.00165]
[1729826595146,0.146649,68190.0,68187.0,0.00165]
[1729826596160,0.146649,68190.0,68187.0,0.148305]
[1729826597036,0.293289,68192.0,68187.0,0.148305]
[1729826597263,0.146647,68191.0,68187.0,0.148305]
[1729826597460,0.293289,68192.0,68187.0,0.148305]
[1729826597664,0.146649,68190.0,68187.0,0.00165]
[1729826598017,0.293289,68192.0,68187.0,0.00165]
[1729826598218,0.146646,68191.0,68187.0,0.00165]
[1729826600173,0.146653,68188.0,68187.0,0.00165]
[1729826603114,0.04399278,68190.0,68187.0,0.00165]
[1729826603271,0.146653,68189.0,68187.0,0.00165]
[1729826603974,0.04399278,68190.0,68187.0,0.00165]
[1729826604176,0.146652,68189.0,68187.0,0.00165]
[1729826604398,0.04399278,68190.0,68187.0,0.00165]
[1729826604602,0.146651,68189.0,68187.0,0.00165]
[1729826605279,0.04399278,68188.0,68187.0,0.00165]
[1729826605477,0.146653,68188.0,68187.0,0.00165]
[1729826605684,0.19064578,68188.0,68187.0,0.00165]
[1729826606871,0.04399278,68191.0,68188.0,0.146653]
[1729826607274,0.19063778,68192.0,68188.0,0.146653]
[1729826607533,0.000825,68192.0,68191.0,0.146646]
[1729826607758,0.000825,68192.0,68191.0,0.68244281]
[1729826607965,0.000825,68192.0,68191.0,0.78507496]
[1729826608166,0.000825,68192.0,68191.0,0.68244281]
[1729826610816,0.000825,68192.0,68191.0,0.687027]
[1729826612305,0.000825,68192.0,68191.0,0.78965915]
[1729826613182,0.000825,68192.0,68191.0,0.86465915]
[1729826615672,0.000825,68192.0,68191.0,0.9722913]
[1729826617554,0.000825,68192.0,68191.0,0.96770711]
[1729826617997,0.000825,68192.0,68191.0,0.97270711]